{"text_format":"3","workbook":"xlsx","n_sheets":5,"sheets":["Relatório de Vendas de Produto","Dados do Histórico","Lista de Preços","Tabela Dinâmica Nível de Preço","Tabela Dinâm. Tendência Vendas"],"not_rendered":{"charts":2,"defined_names":6,"pivot_tables":2},"read":"whole","date_system":"1900"}

{"sheet":"Relatório de Vendas de Produto","index":0,"n_rows":20,"n_cols":2,"rows_kept":20}
[null,"Relatório de Vendas de Produto"]
{"$rows_empty":18}
[null," Produtos"]

{"sheet":"Dados do Histórico","index":1,"n_rows":33,"n_cols":10,"rows_kept":33}
[null,"Lista do Histórico de Preços de Produtos e Vendas"]
[]
[null,"Código do Produto","Nome do Produto","Data do Preço","Preço de Retalho Por Unidade","Preço a Granel Por Unidade*","Unidades Vendidas (a retalho)","Unidades Vendidas (a granel)","Vendas Totais (n.º)","Vendas Totais (€)"]
[null,5,{"$f":"IFERROR(IF(tabelaVendas[[#This Row],[Código do Produto]]<>\"\",VLOOKUP(tabelaVendas[Código do Produto],tabelaProdutos[[Código do Produto]:[Nome]],2,FALSE),\"\"),\"Código do Produto Desconhecido\")","v":"Calções"},"2012-01-01",20,{"v":20,"d":"20 €"},629,{"v":1254,"d":"1,254"},{"$f":"tabelaVendas[[#This Row],[Unidades Vendidas (a retalho)]]+tabelaVendas[[#This Row],[Unidades Vendidas (a granel)]]","v":{"v":1883,"d":"1,883"}},{"$f":"tabelaVendas[[#This Row],[Unidades Vendidas (a retalho)]]*tabelaVendas[[#This Row],[Preço de Retalho Por Unidade]]+tabelaVendas[[#This Row],[Unidades Vendidas (a granel)]]*tabelaVendas[[#This Row],[Preço a Granel Por Unidade*]]","v":{"v":37660,"d":"37,660 €"}}]
[null,1,{"$f":"IFERROR(IF(tabelaVendas[[#This Row],[Código do Produto]]<>\"\",VLOOKUP(tabelaVendas[Código do Produto],tabelaProdutos[[Código do Produto]:[Nome]],2,FALSE),\"\"),\"Código do Produto Desconhecido\")","v":"T-shirts"},"2012-01-01",88,{"v":54,"d":"54 €"},734,{"v":1427,"d":"1,427"},{"$f":"tabelaVendas[[#This Row],[Unidades Vendidas (a retalho)]]+tabelaVendas[[#This Row],[Unidades Vendidas (a granel)]]","v":{"v":2161,"d":"2,161"}},{"$f":"tabelaVendas[[#This Row],[Unidades Vendidas (a retalho)]]*tabelaVendas[[#This Row],[Preço de Retalho Por Unidade]]+tabelaVendas[[#This Row],[Unidades Vendidas (a granel)]]*tabelaVendas[[#This Row],[Preço a Granel Por Unidade*]]","v":{"v":141650,"d":"141,650 €"}}]
[null,2,{"$f":"IFERROR(IF(tabelaVendas[[#This Row],[Código do Produto]]<>\"\",VLOOKUP(tabelaVendas[Código do Produto],tabelaProdutos[[Código do Produto]:[Nome]],2,FALSE),\"\"),\"Código do Produto Desconhecido\")","v":"Sandálias"},"2012-01-01",70,{"v":44,"d":"44 €"},744,{"v":1043,"d":"1,043"},{"$f":"tabelaVendas[[#This Row],[Unidades Vendidas (a retalho)]]+tabelaVendas[[#This Row],[Unidades Vendidas (a granel)]]","v":{"v":1787,"d":"1,787"}},{"$f":"tabelaVendas[[#This Row],[Unidades Vendidas (a retalho)]]*tabelaVendas[[#This Row],[Preço de Retalho Por Unidade]]+tabelaVendas[[#This Row],[Unidades Vendidas (a granel)]]*tabelaVendas[[#This Row],[Preço a Granel Por Unidade*]]","v":{"v":97972,"d":"97,972 €"}}]
[null,3,{"$f":"IFERROR(IF(tabelaVendas[[#This Row],[Código do Produto]]<>\"\",VLOOKUP(tabelaVendas[Código do Produto],tabelaProdutos[[Código do Produto]:[Nome]],2,FALSE),\"\"),\"Código do Produto Desconhecido\")","v":"Chapéu de Sol"},"2012-01-01",63,{"v":44,"d":"44 €"},681,{"v":1523,"d":"1,523"},{"$f":"tabelaVendas[[#This Row],[Unidades Vendidas (a retalho)]]+tabelaVendas[[#This Row],[Unidades Vendidas (a granel)]]","v":{"v":2204,"d":"2,204"}},{"$f":"tabelaVendas[[#This Row],[Unidades Vendidas (a retalho)]]*tabelaVendas[[#This Row],[Preço de Retalho Por Unidade]]+tabelaVendas[[#This Row],[Unidades Vendidas (a granel)]]*tabelaVendas[[#This Row],[Preço a Granel Por Unidade*]]","v":{"v":109915,"d":"109,915 €"}}]
[null,4,{"$f":"IFERROR(IF(tabelaVendas[[#This Row],[Código do Produto]]<>\"\",VLOOKUP(tabelaVendas[Código do Produto],tabelaProdutos[[Código do Produto]:[Nome]],2,FALSE),\"\"),\"Código do Produto Desconhecido\")","v":"Garrafas de água"},"2012-01-01",35,{"v":27,"d":"27 €"},602,{"v":1822,"d":"1,822"},{"$f":"tabelaVendas[[#This Row],[Unidades Vendidas (a retalho)]]+tabelaVendas[[#This Row],[Unidades Vendidas (a granel)]]","v":{"v":2424,"d":"2,424"}},{"$f":"tabelaVendas[[#This Row],[Unidades Vendidas (a retalho)]]*tabelaVendas[[#This Row],[Preço de Retalho Por Unidade]]+tabelaVendas[[#This Row],[Unidades Vendidas (a granel)]]*tabelaVendas[[#This Row],[Preço a Granel Por Unidade*]]","v":{"v":70264,"d":"70,264 €"}}]
[null,1,{"$f":"IFERROR(IF(tabelaVendas[[#This Row],[Código do Produto]]<>\"\",VLOOKUP(tabelaVendas[Código do Produto],tabelaProdutos[[Código do Produto]:[Nome]],2,FALSE),\"\"),\"Código do Produto Desconhecido\")","v":"T-shirts"},"2012-02-01",55,{"v":44,"d":"44 €"},678,{"v":1515,"d":"1,515"},{"$f":"tabelaVendas[[#This Row],[Unidades Vendidas (a retalho)]]+tabelaVendas[[#This Row],[Unidades Vendidas (a granel)]]","v":{"v":2193,"d":"2,193"}},{"$f":"tabelaVendas[[#This Row],[Unidades Vendidas (a retalho)]]*tabelaVendas[[#This Row],[Preço de Retalho Por Unidade]]+tabelaVendas[[#This Row],[Unidades Vendidas (a granel)]]*tabelaVendas[[#This Row],[Preço a Granel Por Unidade*]]","v":{"v":103950,"d":"103,950 €"}}]
[null,2,{"$f":"IFERROR(IF(tabelaVendas[[#This Row],[Código do Produto]]<>\"\",VLOOKUP(tabelaVendas[Código do Produto],tabelaProdutos[[Código do Produto]:[Nome]],2,FALSE),\"\"),\"Código do Produto Desconhecido\")","v":"Sandálias"},"2012-02-01",83,{"v":54,"d":"54 €"},753,{"v":1005,"d":"1,005"},{"$f":"tabelaVendas[[#This Row],[Unidades Vendidas (a retalho)]]+tabelaVendas[[#This Row],[Unidades Vendidas (a granel)]]","v":{"v":1758,"d":"1,758"}},{"$f":"tabelaVendas[[#This Row],[Unidades Vendidas (a retalho)]]*tabelaVendas[[#This Row],[Preço de Retalho Por Unidade]]+tabelaVendas[[#This Row],[Unidades Vendidas (a granel)]]*tabelaVendas[[#This Row],[Preço a Granel Por Unidade*]]","v":{"v":116769,"d":"116,769 €"}}]
[null,3,{"$f":"IFERROR(IF(tabelaVendas[[#This Row],[Código do Produto]]<>\"\",VLOOKUP(tabelaVendas[Código do Produto],tabelaProdutos[[Código do Produto]:[Nome]],2,FALSE),\"\"),\"Código do Produto Desconhecido\")","v":"Chapéu de Sol"},"2012-02-01",34,{"v":34,"d":"34 €"},986,{"v":1069,"d":"1,069"},{"$f":"tabelaVendas[[#This Row],[Unidades Vendidas (a retalho)]]+tabelaVendas[[#This Row],[Unidades Vendidas (a granel)]]","v":{"v":2055,"d":"2,055"}},{"$f":"tabelaVendas[[#This Row],[Unidades Vendidas (a retalho)]]*tabelaVendas[[#This Row],[Preço de Retalho Por Unidade]]+tabelaVendas[[#This Row],[Unidades Vendidas (a granel)]]*tabelaVendas[[#This Row],[Preço a Granel Por Unidade*]]","v":{"v":69870,"d":"69,870 €"}}]
[null,4,{"$f":"IFERROR(IF(tabelaVendas[[#This Row],[Código do Produto]]<>\"\",VLOOKUP(tabelaVendas[Código do Produto],tabelaProdutos[[Código do Produto]:[Nome]],2,FALSE),\"\"),\"Código do Produto Desconhecido\")","v":"Garrafas de água"},"2012-02-01",35,{"v":25,"d":"25 €"},848,{"v":1211,"d":"1,211"},{"$f":"tabelaVendas[[#This Row],[Unidades Vendidas (a retalho)]]+tabelaVendas[[#This Row],[Unidades Vendidas (a granel)]]","v":{"v":2059,"d":"2,059"}},{"$f":"tabelaVendas[[#This Row],[Unidades Vendidas (a retalho)]]*tabelaVendas[[#This Row],[Preço de Retalho Por Unidade]]+tabelaVendas[[#This Row],[Unidades Vendidas (a granel)]]*tabelaVendas[[#This Row],[Preço a Granel Por Unidade*]]","v":{"v":59955,"d":"59,955 €"}}]
[null,5,{"$f":"IFERROR(IF(tabelaVendas[[#This Row],[Código do Produto]]<>\"\",VLOOKUP(tabelaVendas[Código do Produto],tabelaProdutos[[Código do Produto]:[Nome]],2,FALSE),\"\"),\"Código do Produto Desconhecido\")","v":"Calções"},"2012-02-01",41,{"v":38,"d":"38 €"},980,{"v":1330,"d":"1,330"},{"$f":"tabelaVendas[[#This Row],[Unidades Vendidas (a retalho)]]+tabelaVendas[[#This Row],[Unidades Vendidas (a granel)]]","v":{"v":2310,"d":"2,310"}},{"$f":"tabelaVendas[[#This Row],[Unidades Vendidas (a retalho)]]*tabelaVendas[[#This Row],[Preço de Retalho Por Unidade]]+tabelaVendas[[#This Row],[Unidades Vendidas (a granel)]]*tabelaVendas[[#This Row],[Preço a Granel Por Unidade*]]","v":{"v":90720,"d":"90,720 €"}}]
[null,1,{"$f":"IFERROR(IF(tabelaVendas[[#This Row],[Código do Produto]]<>\"\",VLOOKUP(tabelaVendas[Código do Produto],tabelaProdutos[[Código do Produto]:[Nome]],2,FALSE),\"\"),\"Código do Produto Desconhecido\")","v":"T-shirts"},"2012-02-29",27,{"v":18,"d":"18 €"},533,{"v":1936,"d":"1,936"},{"$f":"tabelaVendas[[#This Row],[Unidades Vendidas (a retalho)]]+tabelaVendas[[#This Row],[Unidades Vendidas (a granel)]]","v":{"v":2469,"d":"2,469"}},{"$f":"tabelaVendas[[#This Row],[Unidades Vendidas (a retalho)]]*tabelaVendas[[#This Row],[Preço de Retalho Por Unidade]]+tabelaVendas[[#This Row],[Unidades Vendidas (a granel)]]*tabelaVendas[[#This Row],[Preço a Granel Por Unidade*]]","v":{"v":49239,"d":"49,239 €"}}]
[null,2,{"$f":"IFERROR(IF(tabelaVendas[[#This Row],[Código do Produto]]<>\"\",VLOOKUP(tabelaVendas[Código do Produto],tabelaProdutos[[Código do Produto]:[Nome]],2,FALSE),\"\"),\"Código do Produto Desconhecido\")","v":"Sandálias"},"2012-02-29",38,{"v":28,"d":"28 €"},952,{"v":1512,"d":"1,512"},{"$f":"tabelaVendas[[#This Row],[Unidades Vendidas (a retalho)]]+tabelaVendas[[#This Row],[Unidades Vendidas (a granel)]]","v":{"v":2464,"d":"2,464"}},{"$f":"tabelaVendas[[#This Row],[Unidades Vendidas (a retalho)]]*tabelaVendas[[#This Row],[Preço de Retalho Por Unidade]]+tabelaVendas[[#This Row],[Unidades Vendidas (a granel)]]*tabelaVendas[[#This Row],[Preço a Granel Por Unidade*]]","v":{"v":78512,"d":"78,512 €"}}]
[null,3,{"$f":"IFERROR(IF(tabelaVendas[[#This Row],[Código do Produto]]<>\"\",VLOOKUP(tabelaVendas[Código do Produto],tabelaProdutos[[Código do Produto]:[Nome]],2,FALSE),\"\"),\"Código do Produto Desconhecido\")","v":"Chapéu de Sol"},"2012-02-29",92,{"v":92,"d":"92 €"},956,{"v":1266,"d":"1,266"},{"$f":"tabelaVendas[[#This Row],[Unidades Vendidas (a retalho)]]+tabelaVendas[[#This Row],[Unidades Vendidas (a granel)]]","v":{"v":2222,"d":"2,222"}},{"$f":"tabelaVendas[[#This Row],[Unidades Vendidas (a retalho)]]*tabelaVendas[[#This Row],[Preço de Retalho Por Unidade]]+tabelaVendas[[#This Row],[Unidades Vendidas (a granel)]]*tabelaVendas[[#This Row],[Preço a Granel Por Unidade*]]","v":{"v":204424,"d":"204,424 €"}}]
[null,4,{"$f":"IFERROR(IF(tabelaVendas[[#This Row],[Código do Produto]]<>\"\",VLOOKUP(tabelaVendas[Código do Produto],tabelaProdutos[[Código do Produto]:[Nome]],2,FALSE),\"\"),\"Código do Produto Desconhecido\")","v":"Garrafas de água"},"2012-02-29",43,{"v":36,"d":"36 €"},952,{"v":1390,"d":"1,390"},{"$f":"tabelaVendas[[#This Row],[Unidades Vendidas (a retalho)]]+tabelaVendas[[#This Row],[Unidades Vendidas (a granel)]]","v":{"v":2342,"d":"2,342"}},{"$f":"tabelaVendas[[#This Row],[Unidades Vendidas (a retalho)]]*tabelaVendas[[#This Row],[Preço de Retalho Por Unidade]]+tabelaVendas[[#This Row],[Unidades Vendidas (a granel)]]*tabelaVendas[[#This Row],[Preço a Granel Por Unidade*]]","v":{"v":90976,"d":"90,976 €"}}]
[null,5,{"$f":"IFERROR(IF(tabelaVendas[[#This Row],[Código do Produto]]<>\"\",VLOOKUP(tabelaVendas[Código do Produto],tabelaProdutos[[Código do Produto]:[Nome]],2,FALSE),\"\"),\"Código do Produto Desconhecido\")","v":"Calções"},"2012-02-29",98,{"v":73,"d":"73 €"},530,{"v":1452,"d":"1,452"},{"$f":"tabelaVendas[[#This Row],[Unidades Vendidas (a retalho)]]+tabelaVendas[[#This Row],[Unidades Vendidas (a granel)]]","v":{"v":1982,"d":"1,982"}},{"$f":"tabelaVendas[[#This Row],[Unidades Vendidas (a retalho)]]*tabelaVendas[[#This Row],[Preço de Retalho Por Unidade]]+tabelaVendas[[#This Row],[Unidades Vendidas (a granel)]]*tabelaVendas[[#This Row],[Preço a Granel Por Unidade*]]","v":{"v":157936,"d":"157,936 €"}}]
[null,1,{"$f":"IFERROR(IF(tabelaVendas[[#This Row],[Código do Produto]]<>\"\",VLOOKUP(tabelaVendas[Código do Produto],tabelaProdutos[[Código do Produto]:[Nome]],2,FALSE),\"\"),\"Código do Produto Desconhecido\")","v":"T-shirts"},"2012-03-31",38,{"v":28,"d":"28 €"},973,{"v":1415,"d":"1,415"},{"$f":"tabelaVendas[[#This Row],[Unidades Vendidas (a retalho)]]+tabelaVendas[[#This Row],[Unidades Vendidas (a granel)]]","v":{"v":2388,"d":"2,388"}},{"$f":"tabelaVendas[[#This Row],[Unidades Vendidas (a retalho)]]*tabelaVendas[[#This Row],[Preço de Retalho Por Unidade]]+tabelaVendas[[#This Row],[Unidades Vendidas (a granel)]]*tabelaVendas[[#This Row],[Preço a Granel Por Unidade*]]","v":{"v":76594,"d":"76,594 €"}}]
[null,2,{"$f":"IFERROR(IF(tabelaVendas[[#This Row],[Código do Produto]]<>\"\",VLOOKUP(tabelaVendas[Código do Produto],tabelaProdutos[[Código do Produto]:[Nome]],2,FALSE),\"\"),\"Código do Produto Desconhecido\")","v":"Sandálias"},"2012-03-31",50,{"v":36,"d":"36 €"},672,{"v":1105,"d":"1,105"},{"$f":"tabelaVendas[[#This Row],[Unidades Vendidas (a retalho)]]+tabelaVendas[[#This Row],[Unidades Vendidas (a granel)]]","v":{"v":1777,"d":"1,777"}},{"$f":"tabelaVendas[[#This Row],[Unidades Vendidas (a retalho)]]*tabelaVendas[[#This Row],[Preço de Retalho Por Unidade]]+tabelaVendas[[#This Row],[Unidades Vendidas (a granel)]]*tabelaVendas[[#This Row],[Preço a Granel Por Unidade*]]","v":{"v":73380,"d":"73,380 €"}}]
[null,3,{"$f":"IFERROR(IF(tabelaVendas[[#This Row],[Código do Produto]]<>\"\",VLOOKUP(tabelaVendas[Código do Produto],tabelaProdutos[[Código do Produto]:[Nome]],2,FALSE),\"\"),\"Código do Produto Desconhecido\")","v":"Chapéu de Sol"},"2012-03-31",24,{"v":23,"d":"23 €"},769,{"v":1629,"d":"1,629"},{"$f":"tabelaVendas[[#This Row],[Unidades Vendidas (a retalho)]]+tabelaVendas[[#This Row],[Unidades Vendidas (a granel)]]","v":{"v":2398,"d":"2,398"}},{"$f":"tabelaVendas[[#This Row],[Unidades Vendidas (a retalho)]]*tabelaVendas[[#This Row],[Preço de Retalho Por Unidade]]+tabelaVendas[[#This Row],[Unidades Vendidas (a granel)]]*tabelaVendas[[#This Row],[Preço a Granel Por Unidade*]]","v":{"v":55923,"d":"55,923 €"}}]
[null,4,{"$f":"IFERROR(IF(tabelaVendas[[#This Row],[Código do Produto]]<>\"\",VLOOKUP(tabelaVendas[Código do Produto],tabelaProdutos[[Código do Produto]:[Nome]],2,FALSE),\"\"),\"Código do Produto Desconhecido\")","v":"Garrafas de água"},"2012-03-31",72,{"v":57,"d":"57 €"},985,{"v":1848,"d":"1,848"},{"$f":"tabelaVendas[[#This Row],[Unidades Vendidas (a retalho)]]+tabelaVendas[[#This Row],[Unidades Vendidas (a granel)]]","v":{"v":2833,"d":"2,833"}},{"$f":"tabelaVendas[[#This Row],[Unidades Vendidas (a retalho)]]*tabelaVendas[[#This Row],[Preço de Retalho Por Unidade]]+tabelaVendas[[#This Row],[Unidades Vendidas (a granel)]]*tabelaVendas[[#This Row],[Preço a Granel Por Unidade*]]","v":{"v":176256,"d":"176,256 €"}}]
[null,5,{"$f":"IFERROR(IF(tabelaVendas[[#This Row],[Código do Produto]]<>\"\",VLOOKUP(tabelaVendas[Código do Produto],tabelaProdutos[[Código do Produto]:[Nome]],2,FALSE),\"\"),\"Código do Produto Desconhecido\")","v":"Calções"},"2012-03-31",85,{"v":43,"d":"43 €"},721,{"v":1426,"d":"1,426"},{"$f":"tabelaVendas[[#This Row],[Unidades Vendidas (a retalho)]]+tabelaVendas[[#This Row],[Unidades Vendidas (a granel)]]","v":{"v":2147,"d":"2,147"}},{"$f":"tabelaVendas[[#This Row],[Unidades Vendidas (a retalho)]]*tabelaVendas[[#This Row],[Preço de Retalho Por Unidade]]+tabelaVendas[[#This Row],[Unidades Vendidas (a granel)]]*tabelaVendas[[#This Row],[Preço a Granel Por Unidade*]]","v":{"v":122603,"d":"122,603 €"}}]
[null,1,{"$f":"IFERROR(IF(tabelaVendas[[#This Row],[Código do Produto]]<>\"\",VLOOKUP(tabelaVendas[Código do Produto],tabelaProdutos[[Código do Produto]:[Nome]],2,FALSE),\"\"),\"Código do Produto Desconhecido\")","v":"T-shirts"},"2012-04-30",91,{"v":65,"d":"65 €"},603,{"v":1226,"d":"1,226"},{"$f":"tabelaVendas[[#This Row],[Unidades Vendidas (a retalho)]]+tabelaVendas[[#This Row],[Unidades Vendidas (a granel)]]","v":{"v":1829,"d":"1,829"}},{"$f":"tabelaVendas[[#This Row],[Unidades Vendidas (a retalho)]]*tabelaVendas[[#This Row],[Preço de Retalho Por Unidade]]+tabelaVendas[[#This Row],[Unidades Vendidas (a granel)]]*tabelaVendas[[#This Row],[Preço a Granel Por Unidade*]]","v":{"v":134563,"d":"134,563 €"}}]
[null,2,{"$f":"IFERROR(IF(tabelaVendas[[#This Row],[Código do Produto]]<>\"\",VLOOKUP(tabelaVendas[Código do Produto],tabelaProdutos[[Código do Produto]:[Nome]],2,FALSE),\"\"),\"Código do Produto Desconhecido\")","v":"Sandálias"},"2012-04-30",91,{"v":55,"d":"55 €"},892,{"v":1823,"d":"1,823"},{"$f":"tabelaVendas[[#This Row],[Unidades Vendidas (a retalho)]]+tabelaVendas[[#This Row],[Unidades Vendidas (a granel)]]","v":{"v":2715,"d":"2,715"}},{"$f":"tabelaVendas[[#This Row],[Unidades Vendidas (a retalho)]]*tabelaVendas[[#This Row],[Preço de Retalho Por Unidade]]+tabelaVendas[[#This Row],[Unidades Vendidas (a granel)]]*tabelaVendas[[#This Row],[Preço a Granel Por Unidade*]]","v":{"v":181437,"d":"181,437 €"}}]
[null,3,{"$f":"IFERROR(IF(tabelaVendas[[#This Row],[Código do Produto]]<>\"\",VLOOKUP(tabelaVendas[Código do Produto],tabelaProdutos[[Código do Produto]:[Nome]],2,FALSE),\"\"),\"Código do Produto Desconhecido\")","v":"Chapéu de Sol"},"2012-04-30",42,{"v":42,"d":"42 €"},611,{"v":1181,"d":"1,181"},{"$f":"tabelaVendas[[#This Row],[Unidades Vendidas (a retalho)]]+tabelaVendas[[#This Row],[Unidades Vendidas (a granel)]]","v":{"v":1792,"d":"1,792"}},{"$f":"tabelaVendas[[#This Row],[Unidades Vendidas (a retalho)]]*tabelaVendas[[#This Row],[Preço de Retalho Por Unidade]]+tabelaVendas[[#This Row],[Unidades Vendidas (a granel)]]*tabelaVendas[[#This Row],[Preço a Granel Por Unidade*]]","v":{"v":75264,"d":"75,264 €"}}]
[null,4,{"$f":"IFERROR(IF(tabelaVendas[[#This Row],[Código do Produto]]<>\"\",VLOOKUP(tabelaVendas[Código do Produto],tabelaProdutos[[Código do Produto]:[Nome]],2,FALSE),\"\"),\"Código do Produto Desconhecido\")","v":"Garrafas de água"},"2012-04-30",85,{"v":43,"d":"43 €"},530,{"v":1039,"d":"1,039"},{"$f":"tabelaVendas[[#This Row],[Unidades Vendidas (a retalho)]]+tabelaVendas[[#This Row],[Unidades Vendidas (a granel)]]","v":{"v":1569,"d":"1,569"}},{"$f":"tabelaVendas[[#This Row],[Unidades Vendidas (a retalho)]]*tabelaVendas[[#This Row],[Preço de Retalho Por Unidade]]+tabelaVendas[[#This Row],[Unidades Vendidas (a granel)]]*tabelaVendas[[#This Row],[Preço a Granel Por Unidade*]]","v":{"v":89727,"d":"89,727 €"}}]
[null,5,{"$f":"IFERROR(IF(tabelaVendas[[#This Row],[Código do Produto]]<>\"\",VLOOKUP(tabelaVendas[Código do Produto],tabelaProdutos[[Código do Produto]:[Nome]],2,FALSE),\"\"),\"Código do Produto Desconhecido\")","v":"Calções"},"2012-04-30",82,{"v":71,"d":"71 €"},716,{"v":1249,"d":"1,249"},{"$f":"tabelaVendas[[#This Row],[Unidades Vendidas (a retalho)]]+tabelaVendas[[#This Row],[Unidades Vendidas (a granel)]]","v":{"v":1965,"d":"1,965"}},{"$f":"tabelaVendas[[#This Row],[Unidades Vendidas (a retalho)]]*tabelaVendas[[#This Row],[Preço de Retalho Por Unidade]]+tabelaVendas[[#This Row],[Unidades Vendidas (a granel)]]*tabelaVendas[[#This Row],[Preço a Granel Por Unidade*]]","v":{"v":147391,"d":"147,391 €"}}]
[null,1,{"$f":"IFERROR(IF(tabelaVendas[[#This Row],[Código do Produto]]<>\"\",VLOOKUP(tabelaVendas[Código do Produto],tabelaProdutos[[Código do Produto]:[Nome]],2,FALSE),\"\"),\"Código do Produto Desconhecido\")","v":"T-shirts"},"2012-05-14",34,{"v":31,"d":"31 €"},850,{"v":1548,"d":"1,548"},{"$f":"tabelaVendas[[#This Row],[Unidades Vendidas (a retalho)]]+tabelaVendas[[#This Row],[Unidades Vendidas (a granel)]]","v":{"v":2398,"d":"2,398"}},{"$f":"tabelaVendas[[#This Row],[Unidades Vendidas (a retalho)]]*tabelaVendas[[#This Row],[Preço de Retalho Por Unidade]]+tabelaVendas[[#This Row],[Unidades Vendidas (a granel)]]*tabelaVendas[[#This Row],[Preço a Granel Por Unidade*]]","v":{"v":76888,"d":"76,888 €"}}]
[null,2,{"$f":"IFERROR(IF(tabelaVendas[[#This Row],[Código do Produto]]<>\"\",VLOOKUP(tabelaVendas[Código do Produto],tabelaProdutos[[Código do Produto]:[Nome]],2,FALSE),\"\"),\"Código do Produto Desconhecido\")","v":"Sandálias"},"2012-05-14",64,{"v":40,"d":"40 €"},876,{"v":1663,"d":"1,663"},{"$f":"tabelaVendas[[#This Row],[Unidades Vendidas (a retalho)]]+tabelaVendas[[#This Row],[Unidades Vendidas (a granel)]]","v":{"v":2539,"d":"2,539"}},{"$f":"tabelaVendas[[#This Row],[Unidades Vendidas (a retalho)]]*tabelaVendas[[#This Row],[Preço de Retalho Por Unidade]]+tabelaVendas[[#This Row],[Unidades Vendidas (a granel)]]*tabelaVendas[[#This Row],[Preço a Granel Por Unidade*]]","v":{"v":122584,"d":"122,584 €"}}]
[null,3,{"$f":"IFERROR(IF(tabelaVendas[[#This Row],[Código do Produto]]<>\"\",VLOOKUP(tabelaVendas[Código do Produto],tabelaProdutos[[Código do Produto]:[Nome]],2,FALSE),\"\"),\"Código do Produto Desconhecido\")","v":"Chapéu de Sol"},"2012-05-14",33,{"v":30,"d":"30 €"},881,{"v":1149,"d":"1,149"},{"$f":"tabelaVendas[[#This Row],[Unidades Vendidas (a retalho)]]+tabelaVendas[[#This Row],[Unidades Vendidas (a granel)]]","v":{"v":2030,"d":"2,030"}},{"$f":"tabelaVendas[[#This Row],[Unidades Vendidas (a retalho)]]*tabelaVendas[[#This Row],[Preço de Retalho Por Unidade]]+tabelaVendas[[#This Row],[Unidades Vendidas (a granel)]]*tabelaVendas[[#This Row],[Preço a Granel Por Unidade*]]","v":{"v":63543,"d":"63,543 €"}}]
[null,4,{"$f":"IFERROR(IF(tabelaVendas[[#This Row],[Código do Produto]]<>\"\",VLOOKUP(tabelaVendas[Código do Produto],tabelaProdutos[[Código do Produto]:[Nome]],2,FALSE),\"\"),\"Código do Produto Desconhecido\")","v":"Garrafas de água"},"2012-05-14",29,{"v":27,"d":"27 €"},802,{"v":1548,"d":"1,548"},{"$f":"tabelaVendas[[#This Row],[Unidades Vendidas (a retalho)]]+tabelaVendas[[#This Row],[Unidades Vendidas (a granel)]]","v":{"v":2350,"d":"2,350"}},{"$f":"tabelaVendas[[#This Row],[Unidades Vendidas (a retalho)]]*tabelaVendas[[#This Row],[Preço de Retalho Por Unidade]]+tabelaVendas[[#This Row],[Unidades Vendidas (a granel)]]*tabelaVendas[[#This Row],[Preço a Granel Por Unidade*]]","v":{"v":65054,"d":"65,054 €"}}]
[null,5,{"$f":"IFERROR(IF(tabelaVendas[[#This Row],[Código do Produto]]<>\"\",VLOOKUP(tabelaVendas[Código do Produto],tabelaProdutos[[Código do Produto]:[Nome]],2,FALSE),\"\"),\"Código do Produto Desconhecido\")","v":"Calções"},"2013-12-11",24,{"v":15,"d":"15 €"},824,{"v":1994,"d":"1,994"},{"$f":"tabelaVendas[[#This Row],[Unidades Vendidas (a retalho)]]+tabelaVendas[[#This Row],[Unidades Vendidas (a granel)]]","v":{"v":2818,"d":"2,818"}},{"$f":"tabelaVendas[[#This Row],[Unidades Vendidas (a retalho)]]*tabelaVendas[[#This Row],[Preço de Retalho Por Unidade]]+tabelaVendas[[#This Row],[Unidades Vendidas (a granel)]]*tabelaVendas[[#This Row],[Preço a Granel Por Unidade*]]","v":{"v":49686,"d":"49,686 €"}}]

{"sheet":"Lista de Preços","index":2,"n_rows":18,"n_cols":6,"rows_kept":18,"merged":[[15,1,15,5]]}
[null,"Lista de Preços de Produtos"]
[]
[null,"Adventure Works"]
[null,"Rua do Caranguejo, 235"]
[null,"1000-050 Lisboa"]
[null,"Telefone: +351 21 555 0800"]
[null,"FAX: +351 21 555 0801"]
[null,"www.adventure-works.com",{"$nulls":3},"Última atualização a 15-08-2013"]
[]
[null,"Código do Produto","Nome","Descrição","Preço de Retalho Por Unidade","Preço a Granel Por Unidade*"]
[null,1,"T-shirts","Mantenha a sua frescura todo o verão nas nossas t-shirts de 100% algodão.",{"v":22,"d":"22 €"},{"v":15,"d":"15.00 €"}]
[null,2,"Sandálias","Calce as nossas sandálias de sola de borracha e caminhe facilmente na areia a escaldar.",{"v":10,"d":"10 €"},{"v":6,"d":"6.00 €"}]
[null,3,"Chapéu de Sol","Abrigue-se do sol debaixo do nosso chapéu de sol extra largo que bloqueia 96% de todos os raios UV nocivos.",{"v":30,"d":"30 €"},{"v":20,"d":"20.00 €"}]
[null,4,"Garrafas de água","Hidrate-se com água à temperatura perfeita com a nossa garrafa isotérmica.",{"v":7,"d":"7 €"},{"v":5,"d":"5.00 €"}]
[null,5,"Calções","Vá diretamente da água para dentro do seu carro com os nossos calções de nylon de secagem ultrarrápida.",{"v":15,"d":"15 €"},{"v":8,"d":"8.00 €"}]
[]
[{"$nulls":5},"Contacte-nos para itens não constantes da lista."]
[{"$nulls":5},"*O preço a granel aplica-se a quantidades superiores ou iguais a 12 unidades."]

{"sheet":"Tabela Dinâmica Nível de Preço","index":3,"n_rows":10,"n_cols":4,"rows_kept":10,"hidden":true,"merged":[[1,1,1,3]]}
[null,"Tabela Dinâmica de Nível de Preço"]
[null,"Esta folha deve permanecer oculta. Quaisquer alterações feitas na Tabela Dinâmica abaixo podem resultar em dados incorretos no Relatório de Vendas de Produto. "]
[null,"Produto Selecionado:",{"$f":"IF(LEN(B5),B5,\"Nenhuma\")","v":"Sandálias"}]
[null,"Nome do Produto","Preço de Retalho Por Unidade","Soma das Vendas Totais (n.º)"]
[null,"Sandálias",{"v":38,"d":"38 €"},2464]
[null,null,{"v":50,"d":"50 €"},1777]
[null,null,{"v":64,"d":"64 €"},2539]
[null,null,{"v":70,"d":"70 €"},1787]
[null,null,{"v":83,"d":"83 €"},1758]
[null,null,{"v":91,"d":"91 €"},2715]

{"sheet":"Tabela Dinâm. Tendência Vendas","index":4,"n_rows":9,"n_cols":3,"rows_kept":9,"hidden":true,"merged":[[1,1,1,3]]}
[null,"Tabela Dinâmica de Tendência de Vendas"]
[null,"Esta folha deve permanecer oculta. Quaisquer alterações feitas na Tabela Dinâmica abaixo podem resultar em dados incorretos no Relatório de Vendas de Produto. "]
[null,"\nSoma das Vendas Totais (n.º)","Nome do Produto"]
[null,"Data do Preço","Sandálias"]
[null,"jan",1787]
[null,"fev",4222]
[null,"mar",1777]
[null,"abr",2715]
[null,"mai",2539]